bitfinex/quotes_BTCUSD_20251009
["timestamp","ask_amount","ask_price","bid_price","bid_amount"]
[1759976645913,0.82413843,122120.0,122110.0,0.25224004]
[1759976646633,0.57013049,122120.0,122110.0,0.25424004]
[1759976646864,0.82513843,122120.0,122110.0,0.25424004]
[1759976647710,0.82513843,122120.0,122110.0,0.25624004]
[1759976649167,0.57013049,122120.0,122110.0,0.25624004]
[1759976649298,0.82513843,122120.0,122110.0,0.25624004]
[1759976651813,0.16498647,122120.0,122110.0,0.29420004]
[1759976652049,0.16498647,122120.0,122110.0,0.70164678]
[1759976652050,0.00121314,122120.0,122110.0,0.70164678]
[1759976652266,0.16498647,122120.0,122110.0,0.30574004]
[1759976652468,0.16498647,122120.0,122110.0,0.70164678]
[1759976655985,0.00121314,122120.0,122110.0,0.46952678]
[1759976656359,0.00121314,122120.0,122110.0,0.70164678]
[1759976657195,0.16498647,122120.0,122110.0,0.70164678]
[1759976659625,0.00121314,122120.0,122110.0,0.70164678]
[1759976659759,0.16498647,122120.0,122110.0,0.70164678]
[1759976660572,0.16498647,122120.0,122110.0,0.46952678]
[1759976660768,0.16498647,122120.0,122110.0,0.70164678]
[1759976662043,0.16498647,122120.0,122110.0,0.46952678]
[1759976662248,0.16498647,122120.0,122110.0,0.55472678]
[1759976662453,0.18133647,122120.0,122110.0,0.46952678]
[1759976662861,0.16498647,122120.0,122110.0,0.70164678]
[1759976663449,0.16498647,122120.0,122110.0,0.46952678]
[1759976663655,0.16498647,122120.0,122110.0,0.70164678]
[1759976664069,0.2269369,122120.0,122110.0,0.70164678]
[1759976664275,0.2545669,122120.0,122110.0,0.67899678]
[1759976664695,0.2545669,122120.0,122110.0,0.51521004]
[1759976664907,0.2545669,122120.0,122110.0,0.70164678]
[1759976665071,0.17626647,122120.0,122110.0,0.70164678]
[1759976665268,0.17626647,122120.0,122110.0,0.46952678]
[1759976665474,0.16498647,122120.0,122110.0,0.70164678]
[1759976669558,0.16498647,122120.0,122110.0,0.46952678]
[1759976669793,0.16498647,122120.0,122110.0,0.70164678]
[1759976670023,0.00121314,122120.0,122110.0,0.46952678]
[1759976670256,0.00121314,122120.0,122110.0,0.70164678]
[1759976670715,0.00121314,122120.0,122110.0,0.46952678]
[1759976670959,0.16498647,122120.0,122110.0,0.70160678]
[1759976675429,0.00121314,122120.0,122110.0,0.70160678]
[1759976676943,0.16498647,122120.0,122110.0,0.70160678]
[1759976677155,0.00121314,122120.0,122110.0,0.70160678]
[1759976677331,0.16498647,122120.0,122110.0,0.70160678]
[1759976677748,0.00121314,122120.0,122110.0,0.70160678]
[1759976677974,0.00121314,122120.0,122110.0,0.46952678]
[1759976678405,0.00121314,122120.0,122110.0,0.70160678]
[1759976679457,0.00121314,122120.0,122110.0,0.55264884]
[1759976679672,0.00121314,122120.0,122110.0,0.86472564]
[1759976680413,0.00021314,122120.0,122110.0,0.86272564]
[1759976680613,0.00121314,122120.0,122110.0,0.78372884]
[1759976680917,0.00121314,122120.0,122110.0,0.78772884]
[1759976681351,0.00121314,122120.0,122110.0,0.92580074]
[1759976681741,0.00121314,122120.0,122110.0,1.02865302]
[1759976681941,0.00121314,122120.0,122110.0,1.11385302]
[1759976682185,0.00121314,122120.0,122110.0,1.39828075]
[1759976682367,0.00021314,122120.0,122110.0,1.39528075]
[1759976682567,0.00121314,122120.0,122110.0,1.40028075]
[1759976682839,0.00121314,122120.0,122110.0,1.07900075]
[1759976683073,0.00021314,122120.0,122110.0,1.33893302]
[1759976683303,0.00021314,122120.0,122110.0,1.34393302]
[1759976683592,0.00121314,122120.0,122110.0,1.34393302]
[1759976683799,0.00121314,122120.0,122110.0,1.34893302]
[1759976684950,0.00121314,122120.0,122110.0,1.11685302]
[1759976685161,0.00121314,122120.0,122110.0,1.34893302]
[1759976685329,0.00121314,122120.0,122110.0,1.24608074]
[1759976685743,0.00121314,122120.0,122110.0,0.92880074]
[1759976685944,0.00121314,122120.0,122110.0,1.24608074]
[1759976686813,0.00121314,122120.0,122110.0,1.01400074]
[1759976687100,0.00121314,122120.0,122110.0,1.24608074]
[1759976687598,0.00121314,122120.0,122110.0,1.01400074]
[1759976687812,0.00121314,122120.0,122110.0,1.24608074]
[1759976688290,0.00121314,122120.0,122110.0,1.01400074]
[1759976688520,0.00121314,122120.0,122110.0,1.24608074]
[1759976690852,0.25622108,122120.0,122110.0,0.87588884]
[1759976691089,0.49065055,122120.0,122110.0,0.45287678]
[1759976691291,0.49065055,122120.0,122110.0,0.60633004]
[1759976692315,0.48965055,122120.0,122110.0,0.62427004]
[1759976692533,0.48965055,122120.0,122110.0,0.61927004]
[1759976692721,0.48965055,122120.0,122110.0,0.62027004]
[1759976692856,0.44952441,122120.0,122110.0,0.55201678]
[1759976693060,0.43327441,122120.0,122110.0,0.78405678]
[1759976693303,0.42199441,122120.0,122110.0,0.78405678]
[1759976694456,0.16698647,122120.0,122110.0,0.78405678]
[1759976695208,0.16698647,122120.0,122110.0,0.55201678]
[1759976695532,0.16698647,122120.0,122110.0,0.78409678]
[1759976695730,0.00321314,122120.0,122110.0,0.78409678]
[1759976695919,0.16698647,122120.0,122110.0,0.55201678]
[1759976696318,0.16698647,122120.0,122110.0,0.78409678]
[1759976696806,0.00321314,122120.0,122110.0,0.55201678]
[1759976697016,0.00321314,122120.0,122110.0,0.78409678]
[1759976697687,0.00321314,122120.0,122110.0,0.63513884]
[1759976697896,0.00321314,122120.0,122110.0,0.86721884]
[1759976698106,0.00321314,122120.0,122110.0,0.63513884]
[1759976698520,0.00321314,122120.0,122110.0,0.86721884]
[1759976699012,0.00321314,122120.0,122110.0,0.63513884]
[1759976699233,0.00321314,122120.0,122110.0,0.86721884]
[1759976699610,0.00321314,122120.0,122110.0,0.63513884]
[1759976699856,0.00321314,122120.0,122110.0,0.86721884]
[1759976700790,0.16698647,122120.0,122110.0,0.63513884]
[1759976700998,0.20006116,122120.0,122110.0,0.4713521]
[1759976701211,0.00321314,122120.0,122110.0,0.63513884]
[1759976701409,0.16698647,122120.0,122110.0,0.86721884]
[1759976702871,0.00321314,122120.0,122110.0,0.86721884]
[1759976703521,0.00321314,122120.0,122110.0,0.63513884]
[1759976703766,0.00321314,122120.0,122110.0,0.86721884]
[1759976703973,0.00321314,122120.0,122110.0,0.63513884]
[1759976704192,0.16698647,122120.0,122110.0,0.86721884]
[1759976704618,0.00321314,122120.0,122110.0,0.86721884]
[1759976705340,0.00321314,122120.0,122110.0,0.63513884]
[1759976705782,0.00321314,122120.0,122110.0,0.94721564]
[1759976705979,0.00321314,122120.0,122110.0,0.86721884]
[1759976706861,0.00321314,122120.0,122110.0,0.68988071]
[1759976707294,0.00321314,122120.0,122110.0,0.92196071]
[1759976708517,0.00321314,122120.0,122110.0,0.60468071]
[1759976708703,0.00321314,122120.0,122110.0,0.92196071]
[1759976709848,0.00321314,122120.0,122110.0,1.00195751]
[1759976710806,0.00321314,122120.0,122110.0,0.68988071]
[1759976710940,0.00321314,122120.0,122110.0,0.92196071]
[1759976711747,0.00321314,122120.0,122110.0,1.26196071]
[1759976711962,0.00321314,122120.0,122110.0,1.0548807]
[1759976712164,0.00321314,122120.0,122110.0,1.38977298]
[1759976712575,0.00321314,122120.0,122110.0,1.46976978]
[1759976712778,0.00021314,122120.0,122110.0,1.46976978]
[1759976713187,0.00021314,122120.0,122110.0,1.47376978]
[1759976713601,0.00121314,122120.0,122110.0,1.47676978]
[1759976713827,0.00121314,122120.0,122110.0,1.81665154]
[1759976714028,0.00021314,122120.0,122110.0,1.81365154]
[1759976714413,0.00121314,122120.0,122110.0,1.81965154]
[1759976715471,0.00121314,122120.0,122110.0,1.58761154]
[1759976715674,0.00121314,122120.0,122110.0,2.1595333]
[1759976716092,0.00121314,122120.0,122110.0,1.81965154]
[1759976717311,0.00121314,122120.0,122110.0,1.9274933]
[1759976717509,0.00121314,122120.0,122110.0,1.81965154]
[1759976717866,0.00121314,122120.0,122110.0,1.71679926]
[1759976719462,0.06540817,122150.0,122140.0,0.16374652]
[1759976719655,0.06540817,122150.0,122140.0,0.63222323]
[1759976719833,0.06693781,122150.0,122140.0,0.61068538]
[1759976720163,0.00152964,122150.0,122140.0,0.69584538]
[1759976720791,0.00252964,122150.0,122140.0,0.69784538]
[1759976721595,0.00252964,122150.0,122140.0,0.38064538]
[1759976721814,0.00352964,122150.0,122140.0,0.38580858]
[1759976722021,0.00352964,122150.0,122140.0,0.61784858]
[1759976722225,0.00352964,122150.0,122140.0,0.38580858]
[1759976722429,0.00352964,122150.0,122140.0,0.61784858]
[1759976724485,0.00352964,122150.0,122140.0,0.62624057]
[1759976725120,0.00352964,122150.0,122140.0,0.65301313]
[1759976725329,0.00352964,122150.0,122140.0,0.62624057]
[1759976726162,0.00352964,122150.0,122140.0,0.96612233]
[1759976726370,0.00352964,122150.0,122140.0,0.62624057]
[1759976726710,0.00352964,122150.0,122140.0,0.96612233]
[1759976726918,0.00352964,122150.0,122140.0,0.62624057]
[1759976728140,0.00352964,122150.0,122140.0,0.30904057]
[1759976728336,0.00352964,122150.0,122140.0,0.39420057]
[1759976728548,0.16726275,122150.0,122140.0,0.13690206]
[1759976728841,0.00352964,122150.0,122140.0,0.61780858]
[1759976729296,0.00352964,122150.0,122140.0,0.53264858]
[1759976729605,0.00352964,122150.0,122140.0,0.61780858]
[1759976731073,0.00352964,122150.0,122140.0,0.30064858]
[1759976731273,0.00352964,122150.0,122140.0,0.61780858]
[1759976735255,0.00352964,122150.0,122140.0,0.69780538]
[1759976736040,0.00352964,122150.0,122140.0,0.61780858]
[1759976738894,0.16726275,122150.0,122140.0,0.61780858]
[1759976739331,0.00352964,122150.0,122140.0,0.61780858]
[1759976740883,0.00352964,122150.0,122140.0,0.75584224]
[1759976741098,0.00352964,122150.0,122140.0,0.98784224]
[1759976741298,0.00352964,122150.0,122140.0,1.09242236]
[1759976741741,0.00352964,122150.0,122140.0,0.96326112]
[1759976741947,0.00352964,122150.0,122140.0,1.19526112]
[1759976743192,0.00352964,122150.0,122140.0,1.30326112]
[1759976743421,0.00352964,122150.0,122140.0,1.43242236]
[1759976743625,0.00352964,122150.0,122140.0,1.53526112]
[1759976743833,0.00352964,122150.0,122140.0,0.96337936]
[1759976744035,0.00352964,122150.0,122140.0,1.19537936]
[1759976744681,0.00352964,122150.0,122140.0,1.36400691]
[1759976744902,0.00352964,122150.0,122140.0,1.59600691]
[1759976745110,0.00352964,122150.0,122140.0,0.85813011]
[1759976745318,0.00352964,122150.0,122140.0,1.07245135]
[1759976746316,0.00352964,122150.0,122140.0,0.75529135]
[1759976746467,0.00352964,122150.0,122140.0,0.84045135]
[1759976746670,0.00352964,122150.0,122140.0,1.15240815]
[1759976747654,0.00352964,122150.0,122140.0,0.83528815]
[1759976747831,0.00352964,122150.0,122140.0,1.15240815]
[1759976748030,0.00352964,122150.0,122140.0,0.83528815]
[1759976748300,0.00352964,122150.0,122140.0,0.75529135]
[1759976748520,0.00352964,122150.0,122140.0,0.41529135]
[1759976748721,0.00352964,122150.0,122140.0,0.73245135]
[1759976750890,0.00352964,122150.0,122140.0,0.50045135]
[1759976751100,0.00352964,122150.0,122140.0,0.73241135]
[1759976751303,0.00352964,122150.0,122140.0,0.81240815]
[1759976755226,0.00352964,122150.0,122140.0,0.73241135]
[1759976755436,0.00352964,122150.0,122140.0,0.41529135]
[1759976755640,0.00352964,122150.0,122140.0,0.73241135]
[1759976755893,0.00352964,122150.0,122140.0,0.41529135]
[1759976756107,0.00352964,122150.0,122140.0,0.73241135]
[1759976756266,0.00352964,122150.0,122140.0,0.81240815]
[1759976758554,0.00352964,122150.0,122140.0,0.83534228]
[1759976758751,0.00352964,122150.0,122140.0,1.09023641]
[1759976758956,0.00352964,122150.0,122140.0,1.32219641]
[1759976759375,0.00352964,122150.0,122140.0,0.81240815]
[1759976759586,0.00352964,122150.0,122140.0,1.32219641]
[1759976760450,0.00352964,122150.0,122140.0,1.09023641]
[1759976760655,0.00352964,122150.0,122140.0,1.32219641]
[1759976760827,0.00352964,122150.0,122140.0,1.26228886]
[1759976761874,0.00352964,122150.0,122140.0,0.86517206]
[1759976762203,0.00352964,122150.0,122140.0,0.6725038]
[1759976762402,0.00352964,122150.0,122140.0,0.92739793]
[1759976763175,0.00352964,122150.0,122140.0,0.61027793]
[1759976763383,0.00352964,122150.0,122140.0,0.84223793]
[1759976763626,0.00352964,122150.0,122140.0,0.60997122]
[1759976763809,0.00352964,122150.0,122140.0,0.95002535]
[1759976766491,0.00352964,122150.0,122140.0,0.69513122]
[1759976766686,0.00352964,122150.0,122140.0,0.95002535]
[1759976770197,0.00352964,122150.0,122140.0,0.84223793]
[1759976770356,0.00352964,122150.0,122140.0,0.92739793]
[1759976770746,0.00352964,122150.0,122140.0,0.69543793]
[1759976771125,0.00352964,122150.0,122140.0,0.92739793]
[1759976771306,0.00352964,122150.0,122140.0,1.18229206]
[1759976771538,0.00352964,122150.0,122140.0,1.26228886]
[1759976772495,0.00352964,122150.0,122140.0,0.7525006]
[1759976772694,0.00352964,122150.0,122140.0,1.26228886]
[1759976773517,0.00352964,122150.0,122140.0,1.03032886]
[1759976773720,0.00352964,122150.0,122140.0,0.7525006]
[1759976775307,0.00352964,122150.0,122140.0,0.85533936]
[1759976778300,0.00352964,122150.0,122140.0,0.51323066]
[1759976778301,0.16726275,122150.0,122140.0,0.51323066]
[1759976778514,0.16726275,122150.0,122140.0,0.6423519]
[1759976779586,0.42215023,122150.0,122140.0,0.24664538]
[1759976779772,0.43832023,122150.0,122140.0,0.43119206]
[1759976779980,0.44960023,122150.0,122140.0,0.31708206]
[1759976780194,0.44960023,122150.0,122140.0,0.11298206]
[1759976780400,0.44960023,122150.0,122140.0,0.43010206]
[1759976780800,0.44960023,122150.0,122140.0,0.02986]
[1759976780975,0.47455023,122150.0,122140.0,0.002]
[1759976781192,0.47455023,122150.0,122140.0,0.23396]
[1759976785410,0.44960023,122150.0,122140.0,0.02986]
[1759976785616,0.44960023,122150.0,122140.0,0.2867]
[1759976786255,0.44960023,122150.0,122140.0,0.26182]
[1759976788984,0.47455023,122150.0,122140.0,0.26182]
[1759976789479,0.47455023,122150.0,122140.0,0.02986]
[1759976789721,0.47455023,122150.0,122140.0,0.24523]
[1759976789923,0.47455023,122150.0,122140.0,0.23396]
[1759976793031,0.44960023,122150.0,122140.0,0.01859]
[1759976793255,0.44960023,122150.0,122140.0,0.25055]
[1759976793451,0.47455023,122150.0,122140.0,0.25055]
[1759976793880,0.44960023,122150.0,122140.0,0.25055]
[1759976795210,0.44960023,122150.0,122140.0,0.26182]
[1759976795940,0.19471275,122150.0,122140.0,0.26182]
[1759976798611,0.19457275,122150.0,122140.0,0.28434]
[1759976798802,0.19457275,122150.0,122140.0,0.26182]
[1759976801884,0.47257023,122150.0,122140.0,0.002]
[1759976802093,0.47257023,122150.0,122140.0,0.24954]
[1759976802209,0.44946023,122150.0,122140.0,0.01758]
[1759976802421,0.44946023,122150.0,122140.0,0.24954]
[1759976803247,0.19457275,122150.0,122140.0,0.26147]
[1759976803452,0.44946023,122150.0,122140.0,0.26147]
[1759976804849,0.19457275,122150.0,122140.0,0.26147]
[1759976805071,0.44946023,122150.0,122140.0,0.26147]
[1759976805577,0.19457275,122150.0,122140.0,0.26147]
[1759976805791,0.42215023,122150.0,122140.0,0.05287]
[1759976805976,0.42215023,122150.0,122140.0,0.28483]
[1759976806378,0.43760023,122150.0,122140.0,0.28483]
[1759976806830,0.44888023,122150.0,122140.0,0.26147]
[1759976807416,0.44888023,122150.0,122140.0,0.02951]
[1759976807772,0.44888023,122150.0,122140.0,0.26147]
[1759976809041,0.19399275,122150.0,122140.0,0.26147]
[1759976813204,0.44888023,122150.0,122140.0,0.26147]
[1759976813416,0.21746275,122150.0,122140.0,0.26147]
[1759976813736,0.47235023,122150.0,122140.0,0.26147]
[1759976813934,0.47235023,122150.0,122140.0,0.02951]
[1759976814130,0.47235023,122150.0,122140.0,0.23396]
[1759976814339,0.47235023,122150.0,122140.0,0.002]
[1759976814695,0.21746275,122150.0,122140.0,0.23396]
[1759976814896,0.47235023,122150.0,122140.0,0.23396]
[1759976817098,0.55234703,122150.0,122140.0,0.002]
[1759976817301,0.80723451,122150.0,122140.0,0.002]
[1759976817680,1.03919451,122150.0,122140.0,0.002]
[1759976817883,0.89407724,122150.0,122140.0,0.002]
[1759976818919,0.5540097,122150.0,122140.0,0.002]
[1759976819095,0.89407724,122150.0,122140.0,0.002]
[1759976820374,0.66211724,122150.0,122140.0,0.002]
[1759976820570,0.89407724,122150.0,122140.0,0.002]
[1759976821152,1.3171993,122150.0,122140.0,0.002]
[1759976821689,1.0852393,122150.0,122140.0,0.002]
[1759976821893,0.99236816,122150.0,122140.0,0.002]
[1759976822117,0.75940816,122150.0,122140.0,0.002]
[1759976822429,0.16375992,122130.0,122120.0,0.1234]
[1759976822667,0.51510746,122130.0,122120.0,0.1234]
[1759976822870,0.16377333,122120.0,122110.0,0.26417004]
[1759976823079,0.17505333,122120.0,122110.0,0.49613004]
[1759976823491,0.17505333,122120.0,122110.0,0.30321004]
[1759976823669,0.19050333,122120.0,122110.0,0.27985004]
[1759976823884,0.19050333,122120.0,122110.0,0.51181004]
[1759976824296,0.19050333,122120.0,122110.0,0.27985004]
[1759976824706,0.19050333,122120.0,122110.0,0.51181004]
[1759976824916,0.19050333,122120.0,122110.0,0.27985004]
[1759976825137,0.19050333,122120.0,122110.0,0.51181004]
[1759976825370,0.19050333,122120.0,122110.0,0.27985004]
[1759976825583,0.19150333,122120.0,122110.0,0.51381004]
[1759976825744,0.19450333,122120.0,122110.0,0.51381004]
[1759976827358,0.19450333,122120.0,122110.0,0.53789004]
[1759976827567,0.19450333,122120.0,122110.0,0.51381004]
[1759976829168,0.19450333,122120.0,122110.0,0.28185004]
[1759976829597,0.19450333,122120.0,122110.0,0.51381004]
[1759976829771,0.17905333,122120.0,122110.0,0.51381004]
[1759976830007,0.17905333,122120.0,122110.0,0.53789004]
[1759976830213,0.19536333,122120.0,122110.0,0.53789004]
[1759976830419,0.19536333,122120.0,122110.0,0.28185004]
[1759976830621,0.19536333,122120.0,122110.0,0.51381004]
[1759976832012,0.19536333,122120.0,122110.0,0.49813004]
[1759976832224,0.23323735,122120.0,122110.0,0.48620004]
[1759976832610,0.20932735,122120.0,122110.0,0.50241004]
[1759976834353,0.23323735,122120.0,122110.0,0.48620004]
[1759976834489,0.20932735,122120.0,122110.0,0.50241004]
[1759976835744,0.20932735,122120.0,122110.0,0.25424004]
[1759976835745,0.55934087,122120.0,122110.0,0.25424004]
[1759976835984,0.55934087,122120.0,122110.0,0.50241004]
[1759976836191,0.53543087,122120.0,122110.0,0.50241004]
[1759976836415,0.19536333,122120.0,122110.0,0.50241004]
[1759976836618,0.21927333,122120.0,122110.0,0.50241004]
[1759976836842,0.21927333,122120.0,122110.0,0.48620004]
[1759976837640,0.2688524,122120.0,122110.0,0.50241004]
[1759976838067,0.2927624,122120.0,122110.0,0.50241004]
[1759976838279,0.2927624,122120.0,122110.0,0.48620004]
[1759976838498,0.2927624,122120.0,122110.0,0.25424004]
[1759976838648,0.2927624,122120.0,122110.0,0.48620004]
[1759976839060,0.2927624,122120.0,122110.0,0.25424004]
[1759976839278,0.2927624,122120.0,122110.0,0.48620004]
[1759976844899,0.21927333,122120.0,122110.0,0.48620004]
[1759976845129,0.21927333,122120.0,122110.0,0.25424004]
[1759976845334,0.64239539,122120.0,122110.0,0.25424004]
[1759976845602,1.61720729,122120.0,122110.0,0.25424004]
[1759976845800,1.67765272,122120.0,122110.0,0.25424004]
[1759976846008,1.75764952,122120.0,122110.0,0.25424004]
[1759976847778,1.84284952,122120.0,122110.0,0.25424004]
[1759976847999,1.07751444,122120.0,122110.0,0.25424004]
[1759976848236,1.52524952,122120.0,122110.0,0.25424004]
[1759976848491,1.84280952,122120.0,122110.0,0.25424004]
[1759976851091,1.84279082,122120.0,122110.0,0.25424004]
[1759976852262,1.61043082,122120.0,122110.0,0.25424004]
[1759976852481,1.84275082,122120.0,122110.0,0.25424004]
[1759976852697,1.52523082,122120.0,122110.0,0.25424004]
[1759976852898,1.84275082,122120.0,122110.0,0.25424004]
[1759976853104,1.16261574,122120.0,122110.0,0.25424004]
[1759976853306,1.52523082,122120.0,122110.0,0.25424004]
[1759976853515,1.84275082,122120.0,122110.0,0.25424004]
[1759976854156,1.52523082,122120.0,122110.0,0.25424004]
[1759976854370,1.61043082,122120.0,122110.0,0.25424004]
[1759976854586,1.84275082,122120.0,122110.0,0.25424004]
[1759976855845,1.84271082,122120.0,122110.0,0.25424004]
[1759976857757,1.61043082,122120.0,122110.0,0.25424004]
[1759976857971,1.84271082,122120.0,122110.0,0.25424004]
[1759976858942,1.84267082,122120.0,122110.0,0.25424004]
[1759976860575,0.74265282,122120.0,122110.0,0.25424004]
[1759976860874,1.40016036,122120.0,122110.0,0.25424004]
[1759976861726,1.16792036,122120.0,122110.0,0.25424004]
[1759976861877,1.40016036,122120.0,122110.0,0.25424004]
[1759976862879,1.16792036,122120.0,122110.0,0.25424004]
[1759976863129,1.8202247,122120.0,122110.0,0.25424004]
[1759976863570,1.5027847,122120.0,122110.0,0.25424004]
[1759976863776,1.7350247,122120.0,122110.0,0.25424004]
[1759976864413,1.7349847,122120.0,122110.0,0.25424004]
[1759976864618,1.75743082,122120.0,122110.0,0.25424004]
[1759976866295,0.50378674,122110.0,122100.0,0.10128646]
[1759976866523,1.24594105,122110.0,122100.0,0.10128646]
[1759976866759,1.26152105,122110.0,122100.0,0.10128646]
[1759976866994,1.28612128,122110.0,122100.0,0.10128646]
[1759976868022,1.28612128,122110.0,122100.0,0.10428646]
[1759976868023,1.05492128,122110.0,122100.0,0.10428646]
[1759976868285,1.28720128,122110.0,122100.0,0.10428646]
[1759976868538,1.05492128,122110.0,122100.0,0.10628646]
[1759976868762,1.28716128,122110.0,122100.0,0.10628646]
[1759976868990,1.05492128,122110.0,122100.0,0.10628646]
[1759976869190,1.28716128,122110.0,122100.0,0.10628646]
[1759976872837,1.28716128,122110.0,122100.0,0.10428646]
[1759976873288,1.06092128,122110.0,122100.0,0.10428646]
[1759976873713,1.05992128,122110.0,122100.0,0.10128646]
[1759976873920,1.29512128,122110.0,122100.0,0.10228646]
[1759976874577,1.29508128,122110.0,122100.0,0.10228646]
[1759976875414,1.06292128,122110.0,122100.0,0.10228646]
[1759976875849,1.29508128,122110.0,122100.0,0.10228646]
[1759976876265,1.06292128,122110.0,122100.0,0.10228646]
[1759976876465,1.29508128,122110.0,122100.0,0.10228646]
[1759976877885,1.4654799,122110.0,122100.0,0.10228646]
[1759976878295,0.72285374,122110.0,122100.0,0.10228646]
[1759976878497,1.4654399,122110.0,122100.0,0.10228646]
[1759976878861,1.2333199,122110.0,122100.0,0.10228646]
[1759976879075,1.5506399,122110.0,122100.0,0.10228646]
[1759976879702,1.3185199,122110.0,122100.0,0.10228646]
[1759976879900,1.04017374,122110.0,122100.0,0.10228646]
[1759976880132,1.5506399,122110.0,122100.0,0.10228646]
[1759976880773,1.55067275,122110.0,122100.0,0.10228646]
[1759976880976,1.31855275,122110.0,122100.0,0.10228646]
[1759976881175,1.55067275,122110.0,122100.0,0.10228646]
[1759976882905,1.80590583,122110.0,122100.0,0.10228646]
[1759976883555,1.80590583,122110.0,122090.0,0.22200413]
[1759976883556,0.16380016,122100.0,122090.0,1e-08]
[1759976883719,1.3813296,122100.0,122090.0,1e-08]
[1759976883919,1.4206896,122100.0,122090.0,1e-08]
[1759976884325,1.41306983,122100.0,122090.0,1e-08]
[1759976884749,1.41306983,122100.0,122090.0,0.00100001]
[1759976884750,1.18294983,122100.0,122090.0,0.00100001]
[1759976885003,1.50026983,122100.0,122090.0,0.00100001]
[1759976885172,1.41906983,122100.0,122090.0,0.00100001]
[1759976885378,1.50426983,122100.0,122090.0,0.00100001]
[1759976886009,2.26996907,122100.0,122090.0,0.00100001]
[1759976886211,1.27214983,122100.0,122090.0,0.00100001]
[1759976886386,1.50422983,122100.0,122090.0,0.00100001]
[1759976886568,1.84422983,122100.0,122090.0,0.00100001]
[1759976886776,2.61754245,122100.0,122090.0,0.00100001]
[1759976887217,2.38546245,122100.0,122090.0,0.00100001]
[1759976887419,2.38546245,122100.0,122080.0,0.005]
[1759976887420,0.50381358,122090.0,122080.0,0.005]
[1759976887630,1.64769047,122090.0,122080.0,0.005]
[1759976887831,1.68581047,122090.0,122080.0,0.005]
[1759976888258,1.70399229,122090.0,122080.0,0.005]
[1759976888694,1.70599229,122090.0,122080.0,0.005]
[1759976888889,0.92952623,122080.0,122070.0,0.01818182]
[1759976889068,1.35129054,122080.0,122070.0,0.01818182]
[1759976889286,1.38941054,122080.0,122070.0,0.01818182]
[1759976889659,1.45017675,122080.0,122070.0,0.01818182]
[1759976890115,1.45117675,122080.0,122070.0,0.01918182]
[1759976890831,0.37236071,122080.0,122070.0,0.01818182]
[1759976891031,0.95282142,122080.0,122070.0,0.01818182]
[1759976891277,1.18498142,122080.0,122070.0,0.01818182]
[1759976891477,1.18502142,122080.0,122070.0,0.01818182]
[1759976891650,0.95282142,122080.0,122070.0,0.01818182]
[1759976891858,1.05202092,122080.0,122070.0,0.01818182]
[1759976892068,1.28422092,122080.0,122070.0,0.01818182]
[1759976892274,1.55057358,122080.0,122070.0,0.01918182]
[1759976893302,1.31837076,122080.0,122070.0,0.01918182]
[1759976893545,1.57513926,122080.0,122070.0,0.01918182]
[1759976894508,1.34297926,122080.0,122070.0,0.02092582]
[1759976894706,1.57517926,122080.0,122070.0,0.02092582]
[1759976897265,1.34297926,122080.0,122070.0,0.02092582]
[1759976897497,1.57517926,122080.0,122070.0,0.02092582]
[1759976899433,1.25773926,122080.0,122070.0,0.02092582]
[1759976899653,1.34297926,122080.0,122070.0,0.02092582]
[1759976899828,1.57513926,122080.0,122070.0,0.02092582]
[1759976900029,1.25773926,122080.0,122070.0,0.02092582]
[1759976900254,1.57513926,122080.0,122070.0,0.02092582]
[1759976900453,1.25773926,122080.0,122070.0,0.02092582]
[1759976900635,1.57513926,122080.0,122070.0,0.02092582]
[1759976900841,1.25773926,122080.0,122070.0,0.02092582]
[1759976901246,1.57513926,122080.0,122070.0,0.02092582]
[1759976902172,1.25773926,122080.0,122070.0,0.02092582]
[1759976902352,1.57513926,122080.0,122070.0,0.02092582]
[1759976903098,1.34296892,122080.0,122070.0,0.02092582]
[1759976903300,1.57512892,122080.0,122070.0,0.02092582]
[1759976904051,1.66135892,122080.0,122070.0,0.02092582]
[1759976904253,1.57512892,122080.0,122070.0,0.02092582]
[1759976906656,1.25772892,122080.0,122070.0,0.02092582]
[1759976907058,1.57508892,122080.0,122070.0,0.02092582]
[1759976909831,1.25772892,122080.0,122070.0,0.02092582]
[1759976909984,1.57508892,122080.0,122070.0,0.02092582]
[1759976910392,0.86173283,122080.0,122070.0,0.02092582]
[1759976910728,1.09385283,122080.0,122070.0,0.02092582]
[1759976912356,0.77052633,122080.0,122070.0,0.02092582]
[1759976912565,0.74591783,122080.0,122070.0,0.02092582]
[1759976912788,1.30281315,122080.0,122070.0,0.02092582]
[1759976913193,1.31804543,122080.0,122070.0,0.02092582]
[1759976913926,1.08592543,122080.0,122070.0,0.02092582]
[1759976914173,1.31804543,122080.0,122070.0,0.02092582]
[1759976915417,1.08592543,122080.0,122070.0,0.02092582]
[1759976915617,1.31804543,122080.0,122070.0,0.02092582]
[1759976916502,1.30281315,122080.0,122070.0,0.02092582]
[1759976916702,1.31805372,122080.0,122070.0,0.02092582]
[1759976918318,1.30281315,122080.0,122070.0,0.02092582]
[1759976918938,1.30281315,122080.0,122070.0,0.07153582]
[1759976918939,0.76926699,122080.0,122070.0,0.07153582]
[1759976919131,0.53714699,122080.0,122070.0,0.07153582]
[1759976919336,0.007,122080.0,122070.0,0.36503423]
[1759976919578,0.007,122080.0,122070.0,0.34865019]
[1759976920124,0.007,122080.0,122070.0,0.66649019]
[1759976920376,0.004,122080.0,122070.0,0.66549019]
[1759976920579,0.25923308,122080.0,122070.0,0.55017829]
[1759976920790,0.51894311,122080.0,122070.0,0.02192582]
[1759976920999,0.26371003,122080.0,122070.0,0.02192582]
[1759976921222,0.51394311,122080.0,122070.0,0.01992582]
[1759976921422,0.25971003,122080.0,122070.0,0.02292582]
[1759976921568,0.19145699,122080.0,122070.0,0.04405582]
[1759976921785,0.44669007,122080.0,122070.0,0.03805582]
[1759976921979,0.44569007,122080.0,122070.0,0.03505582]
[1759976922224,0.19045699,122080.0,122070.0,0.03905582]
[1759976922421,0.44669007,122080.0,122070.0,0.23341027]
[1759976922599,0.44669007,122080.0,122070.0,0.32349829]
[1759976922600,0.001,122080.0,122070.0,0.32349829]
[1759976922835,0.001,122080.0,122070.0,0.55625829]
[1759976923626,0.001,122080.0,122070.0,0.32349829]
[1759976923852,0.001,122080.0,122070.0,0.55633829]
[1759976924445,0.001,122080.0,122070.0,0.32349829]
[1759976924978,0.001,122080.0,122070.0,0.55629829]
[1759976925163,0.001,122080.0,122070.0,0.32349829]
[1759976925367,0.001,122080.0,122070.0,0.58645019]
[1759976925551,0.001,122080.0,122070.0,0.35365019]
[1759976926424,0.001,122080.0,122070.0,0.92645019]
[1759976926610,0.001,122080.0,122070.0,1.00644699]
[1759976927184,0.001,122080.0,122070.0,0.77364699]
[1759976927388,0.066277,122110.0,122100.0,0.16380016]
[1759976927702,0.066277,122110.0,122100.0,0.42523017]
[1759976927884,0.066277,122110.0,122100.0,0.42540332]
[1759976928086,0.066277,122110.0,122100.0,0.44797332]
[1759976928344,8.197e-05,122110.0,122100.0,0.44797332]